[Event "45th FIDE Olympiad 2024"]
[Site "Budapest"]
[Date "2024.09.13"]
[Round "3"]
[White "Arnold, Smith"]
[Black "Van Hoolandt, Patrick"]
[Result "0-1"]
[ECO "C65"]
[WhiteElo "1915"]
[BlackElo "2036"]
[Annotator "NA RC"]
[PlyCount "98"]
[EventDate "2024.09.05"]
[EventType "team-tourn"]
[EventCountry "HUN"]
[SourceTitle "playchess.com"]
[Source "ChessBase"]
[SourceQuality "1"]
[TimeControl "40/5400+30:1800+30"]

1. e4 e5 2. Nf3 Nc6 3. Bb5 Nf6 4. d3 Bc5 5. O-O Nd4 6. Nxd4 Bxd4 7. c3 Bb6 8. Bg5 h6 9. Bh4 c6 10. Bc4 d6 11. Nd2 g5 12. Bg3 h5 13. h3 h4 14. Bh2 g4 15. hxg4 Bxg4 16. Qb3 Qe7 17. a4 Rg8 18. Kh1 Be2 19. Rfe1 Bh5 20. Rf1 Ng4 21. a5 Nxf2+ 22. Rxf2 Bxf2 23. Rf1 Be3 24. Nf3 O-O-O 25. Qc2 a6 26. Qe2 Ba7 27. d4 exd4 28. cxd4 Bxd4 29. Qd3 Ba7 30. b4 Rg3 31. e5 Bg6 32. exd6 Rxd6 33. Qc3 Bd4 34. Qc1 Be3 35. Qc3 Bd4 36. Qc1 Be3 37. Qc3 Bd2 38. Qh8+ Rd8 39. Qxh4 Qxh4 40. Nxh4 Rg4 41. Nxg6 Rxc4 42. Ne5 Rc1 43. Rxc1 Bxc1 44. Kg1 f6 45. Nc4 Rd4 46. Nd6+ Kd7 47. Nxb7 Be3+ 48. Kf1 Rxb4 49. Nd6 Bf4 0-1

[Event "45th FIDE Olympiad 2024"]
[Site "Budapest"]
[Date "2024.09.13"]
[Round "3.1"]
[White "Cheparinov, Ivan"]
[Black "Caruana, Fabiano"]
[Result "0-1"]
[ECO "B30"]
[WhiteElo "2628"]
[BlackElo "2798"]
[Annotator "RC"]
[PlyCount "140"]
[EventDate "2024.09.05"]
[EventType "team-tourn"]
[EventCountry "HUN"]
[SourceTitle "playchess.com"]
[Source "ChessBase"]
[SourceQuality "1"]
[WhiteTeam "Bulgaria"]
[BlackTeam "United States of America"]
[WhiteTeamCountry "BUL"]
[TimeControl "40/5400+30:1800+30"]

1. e4 {[%emt 0:00:03]} c5 {[%emt 0:00:04]} 2. Nf3 {[%emt 0:00:05]} Nc6 {[%emt 0:00:03]} 3. Bb5 {[%emt 0:00:13]} e6 {[%emt 0:00:06]} 4. O-O {[%emt 0:01:20]} Nge7 {[%emt 0:00:24]} 5. Re1 {[%emt 0:00:06]} Nd4 {[%emt 0:00:40]} 6. Nxd4 {[%emt 0:00:07]} cxd4 {[%emt 0:00:03]} 7. c3 {[%emt 0:00:37]} a6 {[%emt 0:00:25]} 8. Bf1 {[%emt 0:00:37]} Nc6 {[%emt 0:00:07]} 9. b4 {[%emt 0:01:04]} Bd6 {[%emt 0:00:52]} 10. Bb2 {[%emt 0:01:26]} dxc3 {[%emt 0:00:35]} 11. dxc3 {[%emt 0:00:05]} Qc7 {[%emt 0:00:08]} 12. h3 {[%emt 0:00:06]} O-O {[%emt 0:01:06]} 13. Nd2 {[%emt 0:00:24]} b6 {[%emt 0:01:33]} 14. a3 {[%emt 0:01:55]} Bb7 {[%emt 0:06:03]} 15. c4 {[%emt 0:05:27]} Bh2+ {[%emt 0:00:41]} 16. Kh1 {[%emt 0:00:05]} Be5 {[%emt 0:00:03]} 17. Qb3 {[%emt 0:12:07]} Bxb2 {[%emt 0:05:54]} 18. Qxb2 {[%emt 0:00:10]} a5 {[%emt 0:00:29]} 19. Kg1 {[%emt 0:08:51]} axb4 {[%emt 0:26:21]} 20. axb4 {[%emt 0:00:14]} Ne5 {[%emt 0:00:12]} 21. Qd4 {[%emt 0:04:22]} h6 {[%emt 0:01:29]} 22. Rec1 {[%emt 0:05:45]} Nc6 {[%emt 0:04:12]} 23. Qc3 {[%emt 0:04:39]} Rxa1 {[%emt 0:06:57]} 24. Rxa1 {[%emt 0:00:09]} Rc8 {[%emt 0:00:18]} 25. Qb2 {[%emt 0:05:14]} d6 {[%emt 0:14:22]} 26. Nf3 {[%emt 0:12:26]} Nd8 {[%emt 0:07:57]} 27. Nd2 {[%emt 0:09:43]} e5 {[%emt 0:01:34]} 28. Be2 {[%emt 0:00:54]} Rb8 {[%emt 0:02:45]} 29. Ra3 {[%emt 0:09:53]} Ne6 {[%emt 0:00:50]} 30. Bf1 {[%emt 0:00:22]} Nd4 {[%emt 0:00:41]} 31. f3 {[%emt 0:01:06]} Bc8 {[%emt 0:01:04]} 32. Nb3 {[%emt 0:00:38]} Nc6 {[%emt 0:01:12]} 33. Na1 {[%emt 0:06:35]} Be6 {[%emt 0:03:16]} 34. Nc2 {[%emt 0:00:06]} h5 {[%emt 0:01:41]} 35. Kh1 {[%emt 0:00:51]} h4 {[%emt 0:00:30]} 36. Qc3 {[%emt 0:01:34]} Ne7 {[%emt 0:01:57]} 37. Ne3 {[%emt 0:00:28]} Ng6 {[%emt 0:00:09]} 38. Qa1 {[%emt 0:00:40]} Qd8 {[%emt 0:01:26]} 39. Qe1 {[%emt 0:08:14]} Nf4 {[%emt 0:02:42]} 40. Qf2 {[%emt 0:00:37]} Qg5 {[%emt 0:02:07]} 41. Ra1 {[%emt 0:05:43]} Nh5 {[%emt 0:01:44]} 42. Bd3 {[%emt 0:00:41]} g6 {[%emt 0:01:39]} 43. Kh2 {[%emt 0:09:00]} Kg7 {[%emt 0:00:42]} 44. Bf1 {[%emt 0:00:14]} Rc8 {[%emt 0:01:29]} 45. b5 {[%emt 0:01:50]} Qd8 {[%emt 0:07:21]} 46. Kg1 {[%emt 0:01:09]} Nf4 {[%emt 0:04:31]} 47. Ra7 {[%emt 0:01:23]} Rb8 {[%emt 0:02:58]} 48. Kh2 {[%emt 0:00:26]} Nh5 {[%emt 0:01:53]} 49. Bd3 {[%emt 0:00:37]} Qg5 {[%emt 0:01:21]} 50. Bf1 {[%emt 0:03:10]} Qg3+ {[%emt 0:06:17]} 51. Kg1 {[%emt 0:01:12]} Nf4 {[%emt 0:00:09]} 52. Qxg3 {[%emt 0:00:05]} hxg3 {[%emt 0:00:03]} 53. Nd1 {[%emt 0:03:03]} Rc8 {[%emt 0:01:51]} 54. Nb2 {[%emt 0:00:40]} Rb8 {[%emt 0:04:47]} 55. Na4 {[%emt 0:01:44]} Bc8 {[%emt 0:00:11]} 56. Nc3 {[%emt 0:01:25]} Kf6 {[%emt 0:01:55]} 57. Na4 {[%emt 0:00:37]} Kg7 {[%emt 0:03:40]} 58. Nc3 {[%emt 0:00:01]} Be6 {[%emt 0:00:46]} 59. Na4 {[%emt 0:00:10]} Kh6 {[%emt 0:00:26]} 60. Ra6 {[%emt 0:00:53]} Bc8 {[%emt 0:00:05]} 61. Ra7 {[%emt 0:00:02]} f5 {[%emt 0:00:26]} 62. Nc3 {[%emt 0:01:01]} Kg5 {[%emt 0:00:59]} 63. exf5 {[%emt 0:01:49]} Bxf5 {[%emt 0:01:37]} 64. Ra6 {[%emt 0:00:59]} Kh4 {[%emt 0:01:32]} 65. Na4 {[%emt 0:01:23]} Bc8 {[%emt 0:00:23]} 66. Ra7 {[%emt 0:00:04]} Kg5 {[%emt 0:00:45]} 67. Nc3 {[%emt 0:00:10]} Bb7 {[%emt 0:00:29]} 68. Be2 {[%emt 0:04:57]} d5 {[%emt 0:00:35]} 69. cxd5 {[%emt 0:00:40]} Rc8 {[%emt 0:00:33]} 70. Ne4+ {[%emt 0:00:24]} Kh4 {[%emt 0:00:03]} 0-1

[Event "45th FIDE Olympiad 2024"]
[Site "Budapest"]
[Date "2024.09.13"]
[Round "3.1"]
[White "Susilodinata, Andrean"]
[Black "Ndahangwapo, Heskiel"]
[Result "1-0"]
[ECO "D00"]
[WhiteElo "2393"]
[BlackElo "2011"]
[Annotator "RC"]
[PlyCount "45"]
[EventDate "2024.09.05"]
[EventType "team-tourn"]
[EventCountry "HUN"]
[SourceTitle "playchess.com"]
[Source "ChessBase"]
[SourceQuality "1"]
[WhiteTeam "Indonesia"]
[BlackTeam "Namibia"]
[WhiteTeamCountry "INA"]
[BlackTeamCountry "NAM"]
[TimeControl "40/5400+30:1800+30"]

1. d4 Nf6 2. Nc3 d5 3. Bf4 c6 4. e3 e6 5. Nf3 Bd6 6. Ne5 O-O 7. Bd3 c5 8. dxc5 Bxc5 9. O-O b6 10. Qf3 Bb7 11. Qh3 Be7 12. Rad1 Na6 13. Bg5 g6 14. Bxa6 Bxa6 15. Nc6 Qc7 16. Nxe7+ Qxe7 17. Qh4 Kg7 18. e4 e5 19. Nxd5 Nxd5 20. Bxe7 Nxe7 21. Qxe7 Rfe8 22. Qa3 Bxf1 23. Kxf1 1-0

[Event "45th FIDE Olympiad 2024"]
[Site "Budapest"]
[Date "2024.09.13"]
[Round "3.2"]
[White "So, Wesley"]
[Black "Naiditsch, Arkadij"]
[Result "1-0"]
[ECO "C55"]
[WhiteElo "2752"]
[BlackElo "2643"]
[Annotator "TA"]
[PlyCount "69"]
[EventDate "2024.09.05"]
[EventType "team-tourn"]
[EventCountry "HUN"]
[SourceTitle "playchess.com"]
[Source "ChessBase"]
[SourceQuality "1"]
[WhiteTeam "United States of America"]
[BlackTeam "Bulgaria"]
[BlackTeamCountry "BUL"]
[TimeControl "40/5400+30:1800+30"]

{[%evp 9,69,14,22,7,16,19,21,31,39,19,39,39,45,12,26,24,30,13,19,15,185,165,171,168,287,274,264,295,304,294,304,280,345,337,354,324,343,339,339,357,345,329,353,362,358,360,368,359,352,356,374,373,397,398,560,556,559,550,627,622,608,598]} 1. e4 {[%emt 0:00:15]} e5 {[%emt 0:00:07]} 2. Nf3 {[%emt 0:00:08]} Nc6 {[%emt 0:00:06]} 3. Bc4 {[%emt 0:00:04]} Nf6 {[%emt 0:00:16][%cal Bg8f6,Bf6d7,Bd7b6][%mdl 32]} 4. d3 {[%emt 0:00:07]} Be7 {[%emt 0:00:18]} 5. Nc3 {[%emt 0:00:25]} O-O {[%emt 0:03:03]} 6. a3 {[%emt 0:00:17]} d6 {[%emt 0:01:48][%cal Bd7d6,Bd6d5][%mdl 32]} 7. Be3 {[%emt 0:00:08]} Nd7 {[%emt 0:06:42]} 8. Ba2 {[%emt 0:11:21] The position is equal.} Nb6 {[%emt 0:02:57]} 9. Ne2 {[%emt 0:00:22][%cal Bc3e2,Be2g3,Bg3h5][%mdl 32]} Be6 {[%emt 0:03:59]} 10. Bxe6 {[%emt 0:00:43]} fxe6 {[%emt 0:00:07]} 11. h4 {[%emt 0:03:23]} d5 {[%emt 0:12:07]} 12. Ng3 {[%emt 0:03:21]} h6 {[%emt 0:00:30]} 13. Ng1 {[%emt 0:13:46]} Kh8 {[%emt 0:13:45]} (13... Bxh4 {is more complex.} 14. Qg4 Bxg3 15. Qxg3 Kf7) 14. Qg4 {[%emt 0:01:00]} Nd4 $2 {[%emt 0:00:19] [#] This move loses the game for Black.} (14... Qe8 $11) 15. Bxd4 $18 {[%emt 0:03:45]} exd4 {[%emt 0:03:58]} 16. Nf3 $40 {[%emt 0:07:01][%mdl 128] White goes for the king.} (16. Qxe6 $6 Bxh4 17. Nf5 Qf6 18. Qxf6 (18. exd5 $2 Rae8 $19) 18... Bxf6 $11) 16... Bd6 {[%emt 0:01:51]} (16... Qe8 $142 17. O-O-O (17. Qxe6 $2 Bb4+ 18. axb4 Qxe6 $19) (17. Nxd4 Bc5 $16) 17... dxe4 18. Nxd4 (18. Qxe4 Bd6 $14) 18... Qd7 19. Nxe6 Bd6) 17. Nh5 {[%emt 0:08:40]} (17. Qxe6 Bxg3 18. fxg3 dxe4 19. dxe4 (19. Qxe4 $2 Re8 $19) 19... c5 $14) (17. Nxd4 Rf4 (17... Qf6 18. Nf3 $14) 18. Qxe6 Rf6 $11) (17. e5 Rxf3 18. gxf3 Bxe5 $18) 17... Qd7 {[%emt 0:06:47]} 18. e5 {[%emt 0:05:41]} (18. Nxd4 dxe4 19. dxe4 (19. Qxe6 exd3 20. Qxd7 Nxd7 $14) 19... Be5 $14) 18... Rxf3 {[%emt 0:00:15]} 19. gxf3 {[%emt 0:00:39][%cal Bg2f3,Bf3f4,Bf4f5][%mdl 32]} (19. Qxf3 Bxe5 20. Qg4 Bd6 $16) 19... Bxe5 {[%emt 0:00:12]} 20. f4 {[%emt 0:01:54]} Bd6 {[%emt 0:00:50]} 21. Rg1 {[%emt 0:00:07][%cal Og4g6]} Bf8 {[%emt 0:07:54]} 22. Kf1 {[%emt 0:06:55] Strongly threatening Re1.} Qf7 {[%emt 0:07:58]} 23. Re1 {[%emt 0:01:01]} Re8 {[%emt 0:00:30][%cal Ba8e8,Be8e7,Be7f7,Bf7f5][%mdl 32]} 24. Qg6 {[%emt 0:00:07]} Re7 {[%emt 0:01:01] [#]} 25. f5 $1 {[%emt 0:02:42][%mdl 512]} Qxg6 {[%emt 0:01:39]} 26. Rxg6 {[%emt 0:00:36]} e5 {[%emt 0:00:32]} 27. Re6 {[%emt 0:09:19]} Rf7 {[%emt 0:01:14]} 28. R6xe5 {[%emt 0:00:07]} ({Weaker is} 28. R1xe5 Bd6 29. Nf4 Kh7 $18) 28... Bd6 {[%emt 0:01:36]} 29. Re8+ {[%emt 0:00:05]} Kh7 {[%emt 0:00:08]} 30. Ng3 {[%emt 0:00:05]} Nd7 {[%emt 0:04:15]} 31. Ra8 {[%emt 0:02:07]} Bxg3 {[%emt 0:03:03]} (31... g6 {was worth a try.} 32. fxg6+ (32. Rxa7 gxf5 33. Re6 Nc5 $18) 32... Kxg6 33. h5+ Kg7) 32. fxg3 {[%emt 0:00:05] White is clearly winning.} Rxf5+ {[%emt 0:00:06]} 33. Kg2 {[%emt 0:00:03]} Nf6 {[%emt 0:00:11]} 34. Rf8 {[%emt 0:00:29]} Kg6 {[%emt 0:04:11]} 35. Re7 {[%emt 0:01:25] Weighted Error Value: White=0.06 (flawless) /Black=0.29 (precise) .  Loses game:     	---       	Black=1      Mistake:       	---       	Black=2      Inaccurate:     	White=1     	---        OK:         	White=16    	Black=11     Best:        	White=3     	Black=1} 1-0

[Event "45th FIDE Olympiad 2024"]
[Site "Budapest"]
[Date "2024.09.13"]
[Round "3.2"]
[White "Schwarz, Bernhard"]
[Black "Cahaya, Satria Duta"]
[Result "0-1"]
[ECO "B33"]
[WhiteElo "1875"]
[BlackElo "2219"]
[Annotator "RC"]
[PlyCount "85"]
[EventDate "2024.09.05"]
[EventType "team-tourn"]
[EventCountry "HUN"]
[SourceTitle "playchess.com"]
[Source "ChessBase"]
[SourceQuality "1"]
[WhiteTeam "Namibia"]
[BlackTeam "Indonesia"]
[WhiteTeamCountry "NAM"]
[BlackTeamCountry "INA"]
[TimeControl "40/5400+30:1800+30"]

1. e4 c5 2. Nf3 Nc6 3. d4 cxd4 4. Nxd4 Nf6 5. Nc3 e5 6. Ndb5 d6 7. Bg5 a6 8. Na3 b5 9. Nab1 Be7 10. Bxf6 Bxf6 11. a4 b4 12. Nd5 Bg5 13. Bc4 O-O 14. O-O Kh8 15. c3 bxc3 16. Nbxc3 Qa5 17. Qd3 Qc5 18. Rab1 a5 19. Nb5 Be6 20. b3 Rad8 21. Rbd1 Bg4 22. Rde1 Bc8 23. Kh1 f5 24. Nbc3 Nd4 25. f3 g6 26. f4 exf4 27. Nxf4 Bf6 28. Ncd5 Be5 29. Ne7 Bxf4 30. Rxf4 Qe5 31. Nd5 Ne6 32. Rff1 Nc5 33. Qd2 Nxe4 34. Qxa5 Qd4 35. Rxe4 fxe4 36. Qc3 Qxc3 37. Nxc3 Rxf1+ 38. Bxf1 d5 39. Nd1 d4 40. Bc4 e3 41. Kg1 Be6 42. Bxe6 e2 43. Bc4 0-1

[Event "45th FIDE Olympiad 2024"]
[Site "Budapest"]
[Date "2024.09.13"]
[Round "3.3"]
[White "Petrov, Martin"]
[Black "Aronian, Levon"]
[Result "0-1"]
[ECO "C54"]
[WhiteElo "2536"]
[BlackElo "2729"]
[Annotator "TA"]
[PlyCount "68"]
[EventDate "2024.09.05"]
[EventType "team-tourn"]
[EventCountry "HUN"]
[SourceTitle "playchess.com"]
[Source "ChessBase"]
[SourceQuality "1"]
[WhiteTeam "Bulgaria"]
[BlackTeam "United States of America"]
[WhiteTeamCountry "BUL"]
[TimeControl "40/5400+30:1800+30"]

{[%evp 10,68,18,28,18,13,31,16,47,0,10,0,0,0,-2,-29,0,-24,-21,-119,-131,-120,-119,-117,-96,-252,-279,-270,-309,-306,-288,-313,-273,-311,-302,-304,-314,-316,-315,-291,-315,-329,-326,-288,-287,-409,-418,-572,-552,-691,-652,-662,-675,-696,-660,-777,-747,-1287,-1307,-1340,-1325]} 1. e4 {[%emt 0:00:24]} e5 {[%emt 0:00:05]} 2. Nf3 {[%emt 0:00:06]} Nc6 {[%emt 0:00:05]} 3. Bc4 {[%emt 0:00:14]} Bc5 {[%emt 0:00:06]} 4. O-O {[%emt 0:00:32]} Nf6 {[%emt 0:00:06]} 5. d3 {[%emt 0:00:12][%cal Bd2d3,Bd3d4][%mdl 32]} d6 {[%emt 0:00:07]} 6. c3 {[%emt 0:00:29]} a5 {[%emt 0:00:06]} 7. Bg5 {[%emt 0:00:59]} h6 {[%emt 0:04:17]} 8. Bh4 {[%emt 0:00:05]} Qe7 {[%emt 0:02:40] The position is equal.} 9. d4 {[%emt 0:13:58]} Ba7 {[%emt 0:01:06]} 10. Nbd2 {[%emt 0:04:39]} O-O {[%emt 0:01:01][%cal Re5d4]} 11. Re1 {[%emt 0:14:34]} exd4 {[%emt 0:04:33]} 12. e5 {[%emt 0:11:38]} dxe5 {[%emt 0:00:34]} 13. Ne4 {[%emt 0:01:00] [#] aiming for Nxf6+.} dxc3 {[%emt 0:08:29]} 14. Bxf6 {[%emt 0:22:21]} (14. Nxf6+ $1 $11 gxf6 15. bxc3) 14... gxf6 $17 {[%emt 0:00:28]} 15. Nh4 {[%emt 0:00:38]} f5 {[%emt 0:05:48]} 16. Qh5 {[%emt 0:01:53]} Kg7 {[%emt 0:00:23] Inhibits Qg6+.} (16... fxe4 $6 17. Qg6+ Kh8 18. Qxh6+ Kg8 19. Ng6 $11 (19. bxc3 $2 Rd8 $19)) 17. Ng3 {[%emt 0:18:52] White does not recover from this.} (17. Nxf5+ $17 {was forced.} Bxf5 18. Qxf5) 17... Qg5 $19 {[%emt 0:01:07]} 18. Nhxf5+ {[%emt 0:01:34]} Bxf5 {[%emt 0:01:21]} 19. Nxf5+ {[%emt 0:00:04]} Kf6 {[%emt 0:00:27]} 20. Qxh6+ {[%emt 0:03:32]} Qxh6 {[%emt 0:00:08]} 21. Nxh6 {[%emt 0:00:01]} cxb2 {[%emt 0:01:54]} 22. Rab1 {[%emt 0:00:02]} Bd4 {[%emt 0:04:29]} 23. Ng4+ {[%emt 0:00:04]} Kg5 {[%emt 0:00:17]} 24. Ne3 {[%emt 0:00:06]} a4 {[%emt 0:00:05]} 25. a3 {[%emt 0:00:23]} Na5 {[%emt 0:02:24] [#] ...Bxe3 is the strong threat.} 26. h4+ {[%emt 0:02:11]} Kf6 {[%emt 0:00:55] Hoping for ...Bxe3.} 27. Ba2 {[%emt 0:02:34]} (27. Be2 $142) 27... Nb3 {[%emt 0:01:22]} 28. Nc2 {[%emt 0:00:02]} c5 {[%emt 0:01:33] Black is clearly winning.} 29. Nxd4 {[%emt 0:00:33]} exd4 {[%emt 0:00:06]} (29... cxd4 30. Rxb2 Nc5 31. Rb6+ Ne6 32. f4 $11 (32. Rxb7 Rfb8 $14)) 30. Rxb2 {[%emt 0:00:05]} Rfe8 {[%emt 0:00:53]} 31. Rd1 {[%emt 0:01:24]} c4 {[%emt 0:00:13] Threatens to win with ...d3.} 32. Rc2 {[%emt 0:00:45]} b5 {[%emt 0:00:11]} 33. Kf1 {[%emt 0:00:15]} d3 {[%emt 0:00:20]} 34. Rc3 {[%emt 0:00:18]} Re2 {[%emt 0:00:11] Weighted Error Value: White=0.48/Black=0.03 (flawless) .  Mistake:       	White=3     	---        Inaccurate:     	White=2     	Black=1      OK:         	White=12    	Black=14     Best:        	White=1     	Black=2} 0-1

[Event "45th FIDE Olympiad 2024"]
[Site "Budapest"]
[Date "2024.09.13"]
[Round "3.3"]
[White "Ulhaq, Zacky Dhia"]
[Black "Khoa, Goodwill"]
[Result "1-0"]
[ECO "E91"]
[WhiteElo "2203"]
[BlackElo "1890"]
[Annotator "RC"]
[PlyCount "63"]
[EventDate "2024.09.05"]
[EventType "team-tourn"]
[EventCountry "HUN"]
[SourceTitle "playchess.com"]
[Source "ChessBase"]
[SourceQuality "1"]
[WhiteTeam "Indonesia"]
[BlackTeam "Namibia"]
[WhiteTeamCountry "INA"]
[BlackTeamCountry "NAM"]
[TimeControl "40/5400+30:1800+30"]

1. d4 Nf6 2. c4 g6 3. Nc3 Bg7 4. e4 d6 5. Nf3 O-O 6. Be2 Bg4 7. Be3 Nbd7 8. O-O c5 9. d5 Qb6 10. Qc2 Rab8 11. h3 Bxf3 12. Bxf3 h5 13. Be2 Rfe8 14. g4 hxg4 15. hxg4 Ne5 16. g5 Nh7 17. f4 Nd7 18. Bg4 Ndf8 19. f5 Bd4 20. Qd2 Qb4 21. Be2 Bxe3+ 22. Qxe3 Qxb2 23. Rab1 Qa3 24. Rb3 Qa5 25. Qf4 Qd8 26. fxg6 fxg6 27. e5 dxe5 28. Qf7+ Kh8 29. Ne4 b6 30. Rh3 Qd7 31. Kg2 e6 32. Rxh7+ 1-0

[Event "45th FIDE Olympiad 2024"]
[Site "Budapest"]
[Date "2024.09.13"]
[Round "3.4"]
[White "Robson, Ray"]
[Black "Petkov, Momchil"]
[Result "1/2-1/2"]
[ECO "B66"]
[WhiteElo "2700"]
[BlackElo "2540"]
[Annotator "TA"]
[PlyCount "71"]
[EventDate "2024.09.05"]
[EventType "team-tourn"]
[EventCountry "HUN"]
[SourceTitle "playchess.com"]
[Source "ChessBase"]
[SourceQuality "1"]
[WhiteTeam "United States of America"]
[BlackTeam "Bulgaria"]
[BlackTeamCountry "BUL"]
[TimeControl "40/5400+30:1800+30"]

{[%evp 16,71,38,40,41,29,43,31,42,44,39,35,37,37,42,43,41,11,19,0,0,0,0,0,0,0,0,0,0,8,12,0,0,0,0,0,0,0,0,0,0,0,0,0,0,0,0,0,0,0,0,0,0,0,0,0,0,0]} 1. e4 {[%emt 0:00:05]} c5 {[%emt 0:00:27]} 2. Nf3 {[%emt 0:00:15]} d6 {[%emt 0:00:18]} 3. d4 {[%emt 0:00:18]} cxd4 {[%emt 0:00:14]} 4. Nxd4 {[%emt 0:00:14]} Nf6 {[%emt 0:00:11]} 5. Nc3 {[%emt 0:00:16]} Nc6 {[%emt 0:00:41]} 6. Bg5 {[%emt 0:00:41]} e6 {[%emt 0:00:24]} 7. Qd2 {[%emt 0:00:32]} Be7 {[%emt 0:00:28]} 8. O-O-O {[%emt 0:01:05]} a6 {[%emt 0:00:17]} 9. Bxf6 {[%emt 0:11:11]} gxf6 {[%emt 0:00:21]} 10. f4 {[%emt 0:01:04]} Nxd4 {[%emt 0:00:56]} 11. Qxd4 {[%emt 0:00:05]} Qa5 {[%emt 0:00:32] White is slightly better.} 12. Bc4 {[%emt 0:15:14]} Qc5 {[%emt 0:03:41]} 13. Qd3 {[%emt 0:06:15][%cal Of4f5]} Bd7 {[%emt 0:00:31]} 14. Bb3 {[%emt 0:06:19][%cal Of4f5]} b5 {[%emt 0:01:27] [#]} 15. f5 $1 {[%emt 0:02:49]} a5 {[%emt 0:04:10] aiming for ...a4.} 16. fxe6 {[%emt 0:07:39]} fxe6 {[%emt 0:00:16] [#] White must now prevent ...a4. The position is equal.} 17. e5 $1 {[%emt 0:01:26]} fxe5 {[%emt 0:17:33]} 18. Ne4 {[%emt 0:12:51][%csl LRc5,LRd6]} Qc6 {[%emt 0:01:25]} ({Avoid the trap} 18... Qd4 $2 19. Qf3 Rf8 20. Qh5+ Kd8 21. Rxd4 $18) 19. Nxd6+ {[%emt 0:00:32]} Bxd6 {[%emt 0:01:26]} 20. Qxd6 {[%emt 0:00:09]} Qxd6 {[%emt 0:00:07]} 21. Rxd6 {[%emt 0:00:07][%cal Oh1d1] Hoping for Rhd1!} Ke7 {[%emt 0:01:26]} 22. Rhd1 {[%emt 0:00:20]} Ra7 {[%emt 0:01:26] ...a4 would now be deadly.} 23. a3 {[%emt 0:06:41]} Rg8 {[%emt 0:06:49]} 24. g3 {[%emt 0:02:40]} Rf8 {[%emt 0:03:39]} 25. R6d2 {[%emt 0:05:22]} Bc6 {[%emt 0:19:39]} 26. Re1 {[%emt 0:01:22]} e4 {[%emt 0:03:29]} 27. c3 {[%emt 0:00:55]} b4 {[%emt 0:04:06]} 28. Bc2 {[%emt 0:00:38]} bxc3 {[%emt 0:01:11]} 29. bxc3 {[%emt 0:00:09]} (29. Rde2 {looks sharper.} cxb2+ 30. Kb1 Rb7 31. Bxe4 Bxe4+ 32. Rxe4 Rb6 33. Re5) 29... Rf3 {[%emt 0:00:40]} 30. Bxe4 {[%emt 0:00:43]} Bxe4 {[%emt 0:03:32]} 31. Rxe4 {[%emt 0:00:02]} Rxc3+ $11 {[%emt 0:00:10] KRR-KRR} 32. Kb2 {[%emt 0:00:24]} Rc5 {[%emt 0:03:08]} 33. Kb3 {[%emt 0:03:33]} Rd7 {[%emt 0:11:13]} 34. Rde2 {[%emt 0:05:33]} Rd6 {[%emt 0:01:39]} 35. Ka4 {[%emt 0:00:43]} h5 {[%emt 0:01:08]} 36. Rf4 {[%emt 0:04:29] Weighted Error Value: White=0.03 (flawless) /Black=0.00 (flawless) .  Inaccurate:     	White=1     	---        OK:         	White=10    	Black=17     Best:        	White=1     	Black=1      Brilliant:      	White=1     	---} 1/2-1/2

[Event "45th FIDE Olympiad 2024"]
[Site "Budapest"]
[Date "2024.09.13"]
[Round "3.4"]
[White "Nitzborn, Max Baron"]
[Black "Kristopher, Reynard"]
[Result "0-1"]
[ECO "D01"]
[WhiteElo "1800"]
[BlackElo "2114"]
[Annotator "NA RC"]
[PlyCount "74"]
[EventDate "2024.09.05"]
[EventType "team-tourn"]
[EventCountry "HUN"]
[SourceTitle "playchess.com"]
[Source "ChessBase"]
[SourceQuality "1"]
[WhiteTeam "Namibia"]
[BlackTeam "Indonesia"]
[WhiteTeamCountry "NAM"]
[BlackTeamCountry "INA"]
[TimeControl "40/5400+30:1800+30"]

1. d4 d5 2. Nc3 Nf6 3. Bg5 Nbd7 4. f3 c5 5. Bxf6 Nxf6 6. e4 dxe4 7. d5 e6 8. fxe4 exd5 9. exd5 Bd6 10. Bb5+ Bd7 11. Qe2+ Qe7 12. O-O-O Qxe2 13. Ngxe2 a6 14. Bxd7+ Kxd7 15. Rhf1 h5 16. h4 Rae8 17. Rf3 b5 18. Ng3 Bxg3 19. Rxg3 Ng4 20. Rf1 f6 21. Kd2 Kd6 22. a3 Re5 23. b4 Rc8 24. Re1 Rxe1 25. Kxe1 cxb4 26. axb4 Rc4 27. Kd2 Rxb4 28. Rd3 Ne5 29. Rg3 g6 30. Rh3 Rg4 31. Rh2 b4 32. Nd1 Rd4+ 33. Ke2 Rxd1 34. Kxd1 Ng4 35. Rh3 Nf2+ 36. Kc1 Nxh3 37. gxh3 Kxd5 0-1